fUST/lending_fUST_20240211
["ID","MTS","AMOUNT","RATE_DAILY","PERIOD"]
[313736675,1707640240060,-385.27141684,0.00019178,2]
[313736676,1707640240071,-753.07,0.00019178,2]
[313736677,1707640240081,-500.0,0.00019178,2]
[313736678,1707640240091,-605.54968467,0.00019178,2]
[313736679,1707640240102,-500.0,0.00019178,2]
[313736680,1707640240112,-542.52348911,0.00019178,2]
[313736681,1707640240124,-500.0,0.00019178,2]
[313736682,1707640240135,-500.0,0.00019178,2]
[313736683,1707640240147,-500.0,0.00019178,2]
[313736684,1707640240157,-500.0,0.00019178,2]
[313736685,1707640240167,-625.03822183,0.00019178,2]
[313736686,1707640240176,-500.0,0.00019178,2]
[313736687,1707640240187,-500.0,0.00019178,2]
[313736688,1707640240197,-500.0,0.00019178,2]
[313736689,1707640240207,-500.0,0.00019178,2]
[313736690,1707640240218,-500.0,0.00019178,2]
[313736692,1707640240228,-271.50812814,0.00019178,2]
[313736694,1707640240238,-500.0,0.00019178,2]
[313736695,1707640240248,-536.40190413,0.00019178,2]
[313736696,1707640240259,-174.52141231,0.00019178,2]
[313736697,1707640240269,-500.0,0.00019178,2]
[313736698,1707640240279,-506.66694934,0.00019178,2]
[313736700,1707640240289,-500.0,0.00019178,2]
[313736703,1707640240299,-500.0,0.00019178,2]
[313736705,1707640240309,-571.50534244,0.00019178,2]
[313736707,1707640240319,-500.0,0.00019178,2]
[313736709,1707640240329,-500.0,0.00019178,2]
[313736710,1707640240339,-544.40457145,0.00019178,2]
[313736711,1707640240350,-163.47457663,0.00019178,2]
[313736712,1707640240360,-1843.82,0.00019178,2]
[313736714,1707640240370,-500.0,0.00019178,2]
[313736715,1707640240380,-500.0,0.00019178,2]
[313736716,1707640240392,-500.0,0.00019178,2]
[313736718,1707640240402,-528.0022967,0.00019178,2]
[313736720,1707640240412,-1000.0,0.00019178,2]
[313736721,1707640240422,-500.0,0.00019178,2]
[313736722,1707640240432,-779.73,0.00019178,2]
[313736723,1707640240442,-500.0,0.00019178,2]
[313736724,1707640240452,-588.76577822,0.00019178,2]
[313736726,1707640240462,-500.0,0.00019178,2]
[313736727,1707640240472,-784.51,0.00019178,2]
[313736728,1707640240484,-1633.38,0.00019178,2]
[313736729,1707640240494,-500.0,0.00019178,2]
[313736730,1707640240503,-500.0,0.00019178,2]
[313736731,1707640240514,-500.0,0.00019178,2]
[313736732,1707640240526,-500.0,0.00019178,2]
[313736733,1707640240537,-500.0,0.00019178,2]
[313736734,1707640240547,-500.0,0.00019178,2]
[313736735,1707640240557,-500.0,0.00019178,2]
[313736736,1707640240569,-500.0,0.00019178,2]
[313736737,1707640240579,-1226.71,0.00019178,2]
[313736738,1707640240589,-1904.93,0.00019178,2]
[313736739,1707640240601,-500.0,0.00019178,2]
[313736740,1707640240611,-1153.06,0.00019178,2]
[313736741,1707640240621,-500.0,0.00019178,2]
[313736742,1707640240632,-7300.81,0.00019178,2]
[313736743,1707640240642,-500.0,0.00019178,2]
[313736744,1707640240652,-500.0,0.00019178,2]
[313736745,1707640240662,-500.0,0.00019178,2]
[313736746,1707640240672,-500.0,0.00019178,2]
[313736747,1707640240682,-15334.66,0.00019178,2]
[313736748,1707640240692,-1464.21,0.00019178,2]
[313736749,1707640240702,-500.0,0.00019178,2]
[313736750,1707640240712,-6952.43,0.00019178,2]
[313736751,1707640240722,-500.0,0.00019178,2]
[313736752,1707640240732,-1710.01,0.00019178,2]
[313736753,1707640240743,-500.0,0.00019178,2]
[313736754,1707640240753,-500.0,0.00019178,2]
[313736755,1707640240763,-1041.36,0.00019178,2]
[313736756,1707640240775,-943.82,0.00019178,2]
[313736757,1707640240788,-500.0,0.00019178,2]
[313736758,1707640240798,-500.0,0.00019178,2]
[313736759,1707640240808,-500.0,0.00019178,2]
[313736760,1707640240820,-820.86,0.00019178,2]
[313736761,1707640240831,-1638.78,0.00019178,2]
[313736762,1707640240841,-1784.9,0.00019178,2]
[313736763,1707640240852,-880.32,0.00019178,2]
[313736764,1707640240862,-308.61183286,0.00019178,2]
[313736765,1707640240873,-500.0,0.00019178,2]
[313736766,1707640240883,-8123.11,0.00019178,2]
[313736767,1707640240894,-500.0,0.00019178,2]
[313736768,1707640240903,-287.61429276,0.00019178,2]
[313736769,1707640240915,-4328.91,0.00019178,2]
[313736770,1707640240926,-5570.14,0.00019178,2]
[313736771,1707640240937,-1131.17,0.00019178,2]
[313736772,1707640240948,-500.0,0.00019178,2]
[313736773,1707640240959,-7087.3,0.00019178,2]
[313736774,1707640240970,-846.83,0.00019178,2]
[313736775,1707640240980,-1767.38,0.00019178,2]
[313736776,1707640240991,-6570.01,0.00019178,2]
[313736777,1707640241002,-1104.53,0.00019178,2]
[313736778,1707640241012,-168.236473,0.00019178,2]
[313736779,1707640241022,-169.2242228,0.00019178,2]
[313736780,1707640241033,-169.025814,0.00019178,2]
[313736783,1707640241193,-404.12138152,0.00019351,2]
[313736784,1707640241203,-576.58139445,0.0001945,2]
[313736785,1707640241214,-25801.90491234,0.0001945,2]
[313736786,1707640241224,-1297.90163565,0.00019451,2]
[313736787,1707640241233,-5568.48,0.00019452,2]
[313736788,1707640241242,-496.66696298,0.00019452,2]
[313736789,1707640241251,-500.0,0.00019452,2]
[313736790,1707640241260,-500.0,0.00019452,2]
[313736791,1707640241269,-500.0,0.00019452,2]
[313736793,1707640241279,-500.0,0.00019452,2]
[313736795,1707640241288,-500.0,0.00019452,2]
[313736796,1707640241297,-500.0,0.00019452,2]
[313736797,1707640241306,-500.0,0.00019452,2]
[313736798,1707640241315,-500.0,0.00019452,2]
[313736799,1707640241324,-500.0,0.00019452,2]
[313736800,1707640241334,-500.0,0.00019452,2]
[313736801,1707640241344,-500.0,0.00019452,2]
[313736802,1707640241353,-500.0,0.00019452,2]
[313736803,1707640241364,-500.0,0.00019452,2]
[313736804,1707640241373,-500.0,0.00019452,2]
[313736805,1707640241382,-500.0,0.00019452,2]
[313736806,1707640241391,-500.0,0.00019452,2]
[313736807,1707640241401,-500.0,0.00019452,2]
[313736808,1707640241410,-500.0,0.00019452,2]
[313736809,1707640241418,-851.82,0.00019452,2]
[313736810,1707640241427,-753.07,0.00019452,2]
[313736811,1707640241436,-500.0,0.00019452,2]
[313736812,1707640241446,-500.0,0.00019452,2]
[313736813,1707640241455,-500.0,0.00019452,2]
[313736814,1707640241465,-500.0,0.00019452,2]
[313736815,1707640241475,-500.0,0.00019452,2]
[313736816,1707640241484,-500.0,0.00019452,2]
[313736817,1707640241493,-500.0,0.00019452,2]
[313736818,1707640241503,-356.67160798,0.00019452,2]
[313736820,1707640241512,-500.0,0.00019452,2]
[313736822,1707640241521,-500.0,0.00019452,2]
[313736823,1707640241531,-500.0,0.00019452,2]
[313736824,1707640241541,-500.0,0.00019452,2]
[313736825,1707640241551,-1843.82,0.00019452,2]
[313736826,1707640241560,-500.0,0.00019452,2]
[313736827,1707640241572,-500.0,0.00019452,2]
[313736828,1707640241581,-1000.0,0.00019452,2]
[313736829,1707640241591,-500.0,0.00019452,2]
[313736830,1707640241601,-779.73,0.00019452,2]
[313736831,1707640241610,-619.86733693,0.00019452,2]
[313736832,1707640241619,-628.25869461,0.00019452,2]
[313736833,1707640241629,-784.51,0.00019452,2]
[313736834,1707640241638,-1633.38,0.00019452,2]
[313736835,1707640241648,-500.0,0.00019452,2]
[313736836,1707640241657,-537.90407633,0.00019452,2]
[313736837,1707640241667,-500.0,0.00019452,2]
[313736838,1707640241677,-500.0,0.00019452,2]
[313736839,1707640241686,-500.0,0.00019452,2]
[313736840,1707640241694,-500.0,0.00019452,2]
[313736841,1707640241704,-500.0,0.00019452,2]
[313736842,1707640241713,-1226.71,0.00019452,2]
[313736843,1707640241723,-1904.93,0.00019452,2]
[313736844,1707640241732,-500.0,0.00019452,2]
[313736845,1707640241742,-1153.06,0.00019452,2]
[313736846,1707640241752,-500.0,0.00019452,2]
[313736847,1707640241762,-1406.30062075,0.00019452,2]
[313736848,1707640241997,-154.90705577,0.00010576,2]
[313736849,1707640242006,-465.53061509,0.00019452,2]
[313736850,1707640242019,-2059.09305599,0.00019452,2]
[313736870,1707640244395,-518.325847,0.00010578,2]
[313736873,1707640246174,-8067.36515223,0.00010578,2]
[313736874,1707640246190,-451.25,0.00010578,2]
[313736875,1707640246203,-1612.43959999,0.00010578,2]
[313736876,1707640255228,155.76990043,0.00010492,2]
[313736877,1707640257220,161.52794071,0.00010492,2]
[313736878,1707640259667,346.09955698,0.00010492,2]
[313736879,1707640260105,690.60938138,0.00010492,2]
[313736880,1707640261601,626.68159263,0.00010492,2]
[313736881,1707640264705,155.73492904,0.00010492,2]
[313736882,1707640266368,241.37786878,0.00010492,2]
[313736885,1707640292770,240.26245834,0.00010492,2]
[313736888,1707640511871,253.02271488,0.00010492,2]
[313736889,1707640520096,155.82869241,0.00010492,2]
[313736890,1707640536254,411.39,0.0002549,30]
[313736892,1707640546966,342.83,0.0002549,30]
[313736893,1707640557719,285.69,0.00025401,30]
[313736894,1707640568502,238.07,0.00025469,30]
[313736897,1707640579750,198.39,0.00025401,30]
[313736898,1707640590470,165.33,0.00025339,30]
[313736927,1707641288249,826.67,0.00024947,30]
[313736935,1707641332935,385.0,0.0001,2]
[313736961,1707641432282,-154.90705577,0.00014553,2]
[313736962,1707641432292,-1298.14280611,0.00014553,2]
[313736963,1707641432302,-154.90705577,0.00014554,2]
[313736964,1707641432311,-1434.86449475,0.00014554,2]
[313736965,1707641432321,-154.90705577,0.00014554,2]
[313736966,1707641432330,-5283.53056006,0.00014554,2]
[313736967,1707641432339,-481.83793258,0.00014555,2]
[313736969,1707641432348,-2102.21255648,0.00014555,2]
[313736971,1707641432357,-610.12555724,0.00014556,2]
[313736973,1707641432367,-154.90705577,0.00014557,2]
[313736975,1707641432376,-500.0,0.00014557,2]
[313736977,1707641432385,-590.45600238,0.00014557,2]
[313736979,1707641432394,-330.75753837,0.00014557,2]
[313736981,1707641432403,-161.61744964,0.00014558,2]
[313736982,1707641432412,-1861.10984606,0.00014558,2]
[313736984,1707641432421,-155.49505855,0.0001456,2]
[313736986,1707641432430,-154.90705577,0.0001456,2]
[313736988,1707641432439,-1018.94351989,0.0001456,2]
[313736990,1707641432450,-20970.44740148,0.0001456,2]
[313736992,1707641432459,-37088.22769886,0.00014561,2]
[313736993,1707641432469,-1868.4394301,0.00014582,2]
[313736994,1707641432478,-1689.12587152,0.00015,2]
[313736995,1707641432488,-690.38832205,0.00015,2]
[313736996,1707641432497,-450.34004458,0.00015148,2]
[313736997,1707641432507,-200.0,0.00015289,2]
[313736998,1707641432516,-156.00429501,0.00015538,2]
[313736999,1707641432525,-154.93802479,0.00015616,2]
[313737000,1707641432534,-46.33862383,0.00015616,2]
[313737001,1707641432546,-600.45346452,0.00015616,2]
[313737002,1707641432556,-562.97937755,0.00015616,2]
[313737003,1707641432566,-154.92941805,0.00015616,2]
[313737004,1707641432576,-168.34924826,0.00015616,2]
[313737005,1707641432585,-155.27640177,0.00015616,2]
[313737006,1707641432594,-54.36244044,0.00015621,2]
[313737018,1707641438717,-228.95761572,0.00014552,2]
[313737019,1707641438726,-295.95451694,0.00014552,2]
[313737020,1707641438737,-136.85588656,0.00015621,2]
[313737021,1707641438746,-323.29710524,0.000164,2]
[313737022,1707641438765,-261.22503123,0.000165,2]
[313737023,1707641438778,-629.71922886,0.000165,2]
[313737024,1707641438787,-5615.66669067,0.00016704,2]
[313737025,1707641438801,-519.31827543,0.00016704,2]
[313737026,1707641438811,-280.0,0.00016818,2]
[313737027,1707641438820,-323.29710521,0.00017138,2]
[313737028,1707641438830,-323.29710521,0.00017876,2]
[313737029,1707641438840,-999.20063949,0.00018405,2]
[313737030,1707641438850,-391.0,0.000185,2]
[313737031,1707641438859,-323.29710521,0.00018614,2]
[313737032,1707641438869,-156.412552,0.0001863,2]
[313737033,1707641438878,-307.596951,0.0001863,2]
[313737034,1707641438888,-153.4875482,0.0001863,2]
[313737035,1707641438897,-200.079134,0.0001863,2]
[313737036,1707641438908,-400.0109924,0.0001863,2]
[313737037,1707641438917,-200.079134,0.0001863,2]
[313737038,1707641438927,-4115.68303219,0.000189,2]
[313737039,1707641438936,-3000.20787563,0.0001916,2]
[313737040,1707641438949,-4516.11770712,0.0001916,2]
[313737041,1707641438959,-10108.7236014,0.00019175,2]
[313737042,1707641438970,-5220.34913427,0.00019177,2]
[313737043,1707641438980,-496.66696298,0.00019178,2]
[313737044,1707641438990,-500.0,0.00019178,2]
[313737045,1707641439000,-500.0,0.00019178,2]
[313737046,1707641439011,-500.0,0.00019178,2]
[313737047,1707641439021,-500.0,0.00019178,2]
[313737048,1707641439032,-500.0,0.00019178,2]
[313737049,1707641439041,-504.72565063,0.00019178,2]
[313737050,1707641439051,-500.0,0.00019178,2]
[313737051,1707641439061,-420.9826154,0.00019178,2]
[313737052,1707641439072,-500.0,0.00019178,2]
[313737053,1707641439082,-625.03822183,0.00019178,2]
[313737054,1707641439092,-174.52141231,0.00019178,2]
[313737055,1707641439101,-500.0,0.00019178,2]
[313737056,1707641439111,-536.40190413,0.00019178,2]
[313737057,1707641439120,-271.50812814,0.00019178,2]
[313737058,1707641439132,-500.0,0.00019178,2]
[313737059,1707641439142,-500.0,0.00019178,2]
[313737060,1707641439152,-500.0,0.00019178,2]
[313737061,1707641439161,-500.0,0.00019178,2]
[313737062,1707641439171,-500.0,0.00019178,2]
[313737063,1707641439181,-500.0,0.00019178,2]
[313737064,1707641439191,-500.0,0.00019178,2]
[313737065,1707641439200,-829.76,0.00019178,2]
[313737066,1707641439212,-500.0,0.00019178,2]
[313737067,1707641439223,-500.0,0.00019178,2]
[313737068,1707641439232,-500.0,0.00019178,2]
[313737069,1707641439242,-500.0,0.00019178,2]
[313737070,1707641439252,-500.0,0.00019178,2]
[313737071,1707641439261,-500.0,0.00019178,2]
[313737072,1707641439441,-500.0,0.00019178,2]
[313737073,1707641439452,-500.0,0.00019178,2]
[313737074,1707641439462,-500.0,0.00019178,2]
[313737075,1707641439472,-500.0,0.00019178,2]
[313737076,1707641439482,-500.0,0.00019178,2]
[313737077,1707641439492,-500.0,0.00019178,2]
[313737078,1707641439501,-500.0,0.00019178,2]
[313737079,1707641439510,-500.0,0.00019178,2]
[313737080,1707641439519,-500.0,0.00019178,2]
[313737081,1707641439529,-571.50534244,0.00019178,2]
[313737082,1707641439539,-500.0,0.00019178,2]
[313737083,1707641439549,-500.0,0.00019178,2]
[313737084,1707641439558,-1963.15,0.00019178,2]
[313737085,1707641439568,-173.46530833,0.00019178,2]
[313737086,1707641439577,-500.0,0.00019178,2]
[313737087,1707641439587,-500.0,0.00019178,2]
[313737088,1707641439597,-500.0,0.00019178,2]
[313737089,1707641439607,-1000.0,0.00019178,2]
[313737090,1707641439616,-500.0,0.00019178,2]
[313737091,1707641439625,-500.0,0.00019178,2]
[313737092,1707641439635,-588.76577822,0.00019178,2]
[313737093,1707641439644,-500.0,0.00019178,2]
[313737094,1707641439653,-500.0,0.00019178,2]
[313737095,1707641439662,-500.0,0.00019178,2]
[313737096,1707641439671,-500.0,0.00019178,2]
[313737097,1707641439682,-500.0,0.00019178,2]
[313737098,1707641439691,-287.61429276,0.00019178,2]
[313737099,1707641439701,-500.0,0.00019178,2]
[313737100,1707641439711,-500.0,0.00019178,2]
[313737101,1707641439720,-500.0,0.00019178,2]
[313737102,1707641439729,-500.0,0.00019178,2]
[313737103,1707641439739,-500.0,0.00019178,2]
[313737104,1707641439748,-502.77291728,0.00019178,2]
[313737105,1707641439758,-500.0,0.00019178,2]
[313737106,1707641439767,-500.0,0.00019178,2]
[313737107,1707641439777,-500.0,0.00019178,2]
[313737108,1707641439786,-528.0022967,0.00019178,2]
[313737109,1707641439795,-500.0,0.00019178,2]
[313737110,1707641439804,-461.32960717,0.00019178,2]
[313737111,1707641439814,-505.21352782,0.00019178,2]
[313737112,1707641439823,-151.0,0.00019178,2]
[313737113,1707641439833,-151.0,0.00019178,2]
[313737114,1707641439842,-500.0,0.00019178,2]
[313737115,1707641439851,-500.0,0.00019178,2]
[313737116,1707641439862,-500.0,0.00019178,2]
[313737117,1707641439871,-500.0,0.00019178,2]
[313737118,1707641439880,-500.0,0.00019178,2]
[313737119,1707641439891,-1710.01,0.00019178,2]
[313737120,1707641439900,-1153.06,0.00019178,2]
[313737121,1707641439909,-1904.93,0.00019178,2]
[313737122,1707641439918,-1041.36,0.00019178,2]
[313737123,1707641439927,-500.0,0.00019178,2]
[313737124,1707641439937,-500.0,0.00019178,2]
[313737125,1707641439946,-7195.62,0.00019178,2]
[313737126,1707641439956,-500.0,0.00019178,2]
[313737127,1707641439965,-1226.71,0.00019178,2]
[313737128,1707641439974,-500.0,0.00019178,2]
[313737129,1707641439983,-500.0,0.00019178,2]
[313737130,1707641439993,-500.0,0.00019178,2]
[313737131,1707641440002,-1784.9,0.00019178,2]
[313737132,1707641440012,-500.0,0.00019178,2]
[313737133,1707641440021,-500.0,0.00019178,2]
[313737134,1707641440030,-15334.66,0.00019178,2]
[313737135,1707641440040,-1464.21,0.00019178,2]
[313737136,1707641440049,-500.0,0.00019178,2]
[313737137,1707641440058,-500.0,0.00019178,2]
[313737138,1707641440068,-500.0,0.00019178,2]
[313737139,1707641440077,-2426.13233717,0.00019178,2]
[313737140,1707641440090,-4526.29766283,0.00019178,2]
[313737141,1707641440099,-233.19898642,0.00019178,2]
[313737142,1707641440112,-266.80101358,0.00019178,2]
[313737143,1707641440121,-729.37682661,0.00019178,2]
[313737196,1707641444599,-333.92645003,0.00015,2]
[313737233,1707641446352,-1355.19942149,0.00015,2]
[313737234,1707641446361,-14.37682426,0.00015,2]
[313737235,1707641446380,-988.25375335,0.00014999,2]
[313737236,1707641446390,-676.01149779,0.00015,2]
[313737237,1707641446399,-57.15360966,0.00019177,2]
[313737238,1707641446413,-190.99258317,0.00019177,2]
[313737239,1707641446422,-5283.53056006,0.00019177,2]
[313737240,1707641446432,-7393.73317339,0.00019178,2]
[313737241,1707641446442,-500.0,0.00019178,2]
[313737242,1707641446452,-151.0,0.00019178,2]
[313737243,1707641446462,-943.82,0.00019178,2]
[313737244,1707641446472,-851.82,0.00019178,2]
[313737245,1707641446481,-880.32,0.00019178,2]
[313737246,1707641446490,-500.0,0.00019178,2]
[313737247,1707641446500,-500.0,0.00019178,2]
[313737248,1707641446509,-500.0,0.00019178,2]
[313737249,1707641446518,-1638.78,0.00019178,2]
[313737250,1707641446527,-500.0,0.00019178,2]
[313737251,1707641446536,-7087.3,0.00019178,2]
[313737252,1707641446546,-1131.17,0.00019178,2]
[313737253,1707641446555,-291.46716292,0.00019178,2]
[313737254,1707641561671,411.39,0.00025076,30]
[313737258,1707641572430,342.82,0.00025077,30]
[313737260,1707641583141,285.69,0.00025053,30]
[313737261,1707641593845,238.07,0.00025053,30]
[313737262,1707641604549,198.39,0.00025053,30]
[313737264,1707641615884,165.33,0.00025016,30]
[313737267,1707641626854,826.67,0.0002499,30]
[313737281,1707641977289,2648.9697429,0.00010346,2]
[313737284,1707642018764,250.0,0.00010339,2]
[313737292,1707642096202,265.94682266,0.00010339,2]
[313737293,1707642104897,-154.87609912,0.00011231,2]
[313737294,1707642104917,-2102.21255648,0.00011231,2]
[313737295,1707642104937,-154.87609912,0.00011231,2]
[313737296,1707642104957,-154.87609912,0.00011231,2]
[313737297,1707642104977,-323.95906858,0.00011231,2]
[313737298,1707642104998,-535.79408158,0.00011231,2]
[313737299,1707642105018,-1587.73592966,0.00011231,2]
[313737300,1707642105039,-181.64923737,0.00011232,2]
[313737301,1707642105059,-295.95451694,0.00011232,2]
[313737302,1707642105079,-154.87609912,0.00011232,2]
[313737303,1707642105098,-5283.53056006,0.00011232,2]
[313737304,1707642105119,-155.49505855,0.00011233,2]
[313737305,1707642105139,-590.45600238,0.00011233,2]
[313737306,1707642105160,-2824.04192981,0.00011233,2]
[313737307,1707642105181,-508.99655734,0.00011234,2]
[313737308,1707642105200,-20944.3104518,0.00011326,2]
[313737309,1707642105219,-523.96080896,0.00011327,2]
[313737310,1707642105239,-2046.15263611,0.00011327,2]
[313737311,1707642105259,-1962.48111679,0.00011327,2]
[313737312,1707642105279,-7987.44118127,0.00011327,2]
[313737313,1707642105299,-214.2019474,0.00011327,2]
[313737314,1707642105319,-154.87609912,0.00011328,2]
[313737315,1707642105342,-179.31837611,0.00011328,2]
[313737316,1707642105362,-154.87609912,0.00011328,2]
[313737317,1707642105383,-718.5549009,0.00011328,2]
[313737318,1707642105404,-3746.44530431,0.00011329,2]
[313737319,1707642105428,-154.87609912,0.00011329,2]
[313737320,1707642105447,-37088.22769886,0.0001133,2]
[313737321,1707642105595,-20970.44740148,0.00011331,2]
[313737322,1707642105620,-212.72419898,0.00011332,2]
[313737323,1707642105642,-6810.29344002,0.00011346,2]
[313737324,1707642105662,-1399.1200784,0.0001136,2]
[313737325,1707642105683,-7875.046286,0.00011363,2]
[313737326,1707642105702,-848.9882922,0.00011363,2]
[313737327,1707642105723,-200.0,0.00011909,2]
[313737328,1707642105743,-678.94138998,0.00012356,2]
[313737329,1707642105764,-19148.7409661,0.00012364,2]
[313737330,1707642105785,-155.40274411,0.00012489,2]
[313737331,1707642105815,-309.75213633,0.00012489,2]
[313737332,1707642105836,-261.53600147,0.00012489,2]
[313737333,1707642105857,-163.17551542,0.00012489,2]
[313737334,1707642105877,-198.28827344,0.00012489,2]
[313737335,1707642105897,-562.54093684,0.00012489,2]
[313737336,1707642105917,-155.86263332,0.00012489,2]
[313737337,1707642105937,-155.31545438,0.00012489,2]
[313737338,1707642105958,-474.52525301,0.00012489,2]
[313737339,1707642105978,-155.34758793,0.00012489,2]
[313737340,1707642105998,-175.34416041,0.0001249,2]
[313737341,1707642106018,-256.31305784,0.0001249,2]
[313737342,1707642106038,-270.10024426,0.0001249,2]
[313737343,1707642106059,-80502.90538121,0.00012492,2]
[313737344,1707642106078,-668.8660818,0.000125,2]
[313737345,1707642106099,-280.0,0.000131,2]
[313737346,1707642106123,-508.9965573,0.00013195,2]
[313737347,1707642106144,-712.37331267,0.00013495,2]
[313737349,1707642112202,265.94682266,0.00010339,2]
[313737350,1707642132204,208.52048005,0.00010339,2]
[313737355,1707642256602,-3546.5234401,0.00011941,2]
[313737356,1707642256623,-154.87609912,0.0001249,2]
[313737357,1707642256643,-523.96080896,0.00012491,2]
[313737358,1707642256663,-1962.48111679,0.00012491,2]
[313737359,1707642256683,-161.61744964,0.00012492,2]
[313737360,1707642256703,-7987.44118127,0.00012492,2]
[313737361,1707642256724,-92.09990412,0.00012493,2]
[313737413,1707642632508,-154.87609912,0.00011503,2]
[313737414,1707642632518,-161.61744964,0.00011504,2]
[313737416,1707642632527,-384.43747599,0.00011505,2]
[313737437,1707642638635,-1587.73592966,0.00011504,2]
[313737438,1707642638644,-390.95902011,0.00011504,2]
[313737439,1707642638656,-3355.4862842,0.00011504,2]
[313737440,1707642638666,-634.5060439,0.00011505,2]
[313737441,1707642638675,-718.5549009,0.00011505,2]
[313737442,1707642638684,-155.49505855,0.00011505,2]
[313737443,1707642638693,-199.87854564,0.00011506,2]
[313737444,1707642638701,-2607.82045622,0.00011506,2]
[313737445,1707642638710,-1407.29175732,0.00011506,2]
[313737484,1707642641760,-2191.38282474,0.00011506,2]
[313737487,1707642641773,-4388.76659921,0.00011506,2]
[313737489,1707642641782,-6810.29344002,0.00011506,2]
[313737491,1707642641792,-309.20751776,0.0001151,2]
[313737493,1707642641802,-250.0,0.00011517,2]
[313737495,1707642641811,-200.0,0.00012085,2]
[313737497,1707642641821,-1636.21370593,0.00012493,2]
[313737499,1707642641830,-177.827444,0.00012493,2]
[313737501,1707642641840,-157.68801362,0.00012494,2]
[313737503,1707642641850,-24900.0,0.00012495,2]
[313737505,1707642641859,-10680.60577324,0.00012689,2]
[313737508,1707642641878,-1912.86942624,0.00012689,2]
[313737575,1707642643522,-1227.0449314,0.00012689,2]
[313737576,1707642643537,-5254.90642472,0.00012689,2]
[313737577,1707642643549,-280.0,0.00013294,2]
[313737578,1707642643558,-3692.51868175,0.00013493,2]
[313737579,1707642643567,-5851.32671768,0.00013494,2]
[313737580,1707642643579,-793.39723521,0.00013494,2]
[313737594,1707642647169,-86.69455105,0.00012598,2]
[313737595,1707642647280,-24813.30544895,0.00012598,2]
[313737596,1707642647290,-160.22177597,0.00012688,2]
[313737597,1707642647300,-1500.44271312,0.00013494,2]
[313737598,1707642647310,-156.15687746,0.00013494,2]
[313737599,1707642647319,-200.079134,0.000135,2]
[313737600,1707642647329,-200.079134,0.000135,2]
[313737601,1707642647338,-198.417527,0.000135,2]
[313737602,1707642647347,-340.70901495,0.00013599,2]
[313737603,1707642647356,-159.59894828,0.00013698,2]
[313737604,1707642647365,-3000.0,0.00013699,2]
[313737605,1707642647374,-19564.0465427,0.00013699,2]
[313737606,1707642647383,-2331.293772,0.00013699,2]
[313737607,1707642647392,-391.0,0.00014623,2]
[313737608,1707642647401,-151.0,0.00014665,2]
[313737609,1707642647410,-4025.64326728,0.00014994,2]
[313737610,1707642647419,-265.45742887,0.00014999,2]
[313737611,1707642647429,-500.0,0.00014999,2]
[313737612,1707642647438,-690.38832205,0.00015,2]
[313737613,1707642647448,-340.70901494,0.00015037,2]
[313737614,1707642647457,-151.0,0.00015632,2]
[313737615,1707642647466,-200.0,0.00016085,2]
[313737616,1707642647475,-348.0,0.00016085,2]
[313737617,1707642647484,-340.70901494,0.00016476,2]
[313737618,1707642647497,-524.76602405,0.000165,2]
[313737619,1707642647506,-151.0,0.00016599,2]
[313737620,1707642647516,-484.15245738,0.00017253,2]
[313737621,1707642647526,-548.46510241,0.00017434,2]
[313737622,1707642647535,-221.47993987,0.00017434,2]
[313737623,1707642647544,-151.0,0.00017567,2]
[313737624,1707642647554,-200.0,0.00017694,2]
[313737625,1707642647563,-200.0,0.00017694,2]
[313737626,1707642647572,-368.0,0.00017694,2]
[313737627,1707642647586,-340.70901494,0.00017914,2]